bitfinex/quotes_BTCUSD_20240620
["timestamp","ask_amount","ask_price","bid_price","bid_amount"]
[1718889514988,0.19128884,65715.0,65701.0,0.98240941]
[1718889515532,4.37383784,65715.0,65701.0,0.98240941]
[1718889515686,0.01902283,65714.0,65701.0,0.98240941]
[1718889515890,4.11944915,65715.0,65701.0,0.98240941]
[1718889516365,0.061057,65713.0,65701.0,0.98240941]
[1718889516718,0.091487,65713.0,65701.0,0.98240941]
[1718889516924,0.061057,65713.0,65701.0,0.98240941]
[1718889517501,0.091487,65713.0,65701.0,0.98240941]
[1718889518027,0.161057,65713.0,65701.0,0.98240941]
[1718889518225,0.191487,65713.0,65701.0,0.98240941]
[1718889519146,0.03043,65711.0,65706.0,0.05]
[1718889519564,0.19622368,65712.0,65706.0,0.05]
[1718889519565,0.03043,65709.0,65706.0,0.05]
[1718889519836,0.2507,65707.0,65706.0,0.05]
[1718889520042,0.42698172,65707.0,65706.0,0.05]
[1718889520244,0.44692368,65707.0,65706.0,0.05]
[1718889521493,0.5232054,65707.0,65706.0,0.05]
[1718889521693,0.95523,65706.0,65701.0,0.98240941]
[1718889521842,0.45523,65702.0,65701.0,0.87677123]
[1718889522002,0.65430613,65702.0,65701.0,0.54747123]
[1718889522211,0.65430613,65702.0,65699.0,0.009493]
[1718889522212,0.36234949,65702.0,65699.0,0.009493]
[1718889522412,0.28237687,65701.0,65699.0,0.009493]
[1718889522637,0.24422261,65701.0,65699.0,0.009493]
[1718889522847,0.26006484,65701.0,65699.0,0.009493]
[1718889523101,0.16102239,65701.0,65699.0,0.009493]
[1718889523293,0.17620454,65701.0,65699.0,0.009493]
[1718889523494,0.07622345,65705.0,65699.0,0.009493]
[1718889523905,0.07606336,65706.0,65699.0,0.009493]
[1718889524757,0.0763704,65704.0,65699.0,0.009493]
[1718889524960,0.07606336,65706.0,65699.0,0.009493]
[1718889525291,0.0763704,65704.0,65699.0,0.009493]
[1718889525702,0.07655363,65702.0,65699.0,0.009493]
[1718889525904,0.0383,65701.0,65699.0,0.009493]
[1718889527827,0.07609075,65700.0,65680.0,0.45769034]
[1718889528031,0.01387886,65681.0,65680.0,0.45769034]
[1718889528234,0.01387886,65681.0,65677.0,0.009504]
[1718889528436,0.01509567,65680.0,65677.0,0.009504]
[1718889530391,0.09133728,65680.0,65677.0,0.009504]
[1718889531646,0.09133728,65680.0,65679.0,1.000946]
[1718889532110,0.11433728,65680.0,65679.0,1.000946]
[1718889532315,0.21454161,65680.0,65679.0,0.97049238]
[1718889532543,0.25595709,65680.0,65679.0,0.94659044]
[1718889532658,0.23295709,65680.0,65679.0,0.94659044]
[1718889532866,0.17624161,65680.0,65679.0,0.94659044]
[1718889533928,0.1,65680.0,65679.0,0.94659044]
[1718889534268,0.1,65680.0,65679.0,0.94504375]
[1718889534696,0.03043,65699.0,65679.0,0.93743978]
[1718889534697,0.07614808,65697.0,65679.0,0.93743978]
[1718889534844,0.07614808,65697.0,65680.0,0.07628172]
[1718889535058,0.01584223,65705.0,65680.0,0.07628172]
[1718889535059,0.07649045,65704.0,65687.0,0.07628172]
[1718889535287,0.07649045,65704.0,65689.0,0.3088]
[1718889535847,0.07649045,65704.0,65694.0,0.06786172]
[1718889536478,0.07649045,65704.0,65696.0,0.07628172]
[1718889536899,0.07649045,65704.0,65689.0,0.217458]
[1718889537242,0.01584223,65705.0,65689.0,0.065214]
[1718889537243,1.37007,65690.0,65689.0,0.065214]
[1718889537451,2.43568,65690.0,65689.0,0.065214]
[1718889537652,2.45712027,65690.0,65689.0,0.065214]
[1718889537854,2.76158027,65690.0,65689.0,0.065214]
[1718889538269,2.435714,65689.0,65688.0,0.179064]
[1718889538418,2.86161827,65689.0,65688.0,0.179064]
[1718889539044,2.86161827,65689.0,65688.0,0.148614]
[1718889539248,2.86161827,65689.0,65688.0,0.02681]
[1718889539414,2.86161827,65689.0,65688.0,0.04681]
[1718889540038,0.12144027,65689.0,65685.0,0.005457]
[1718889540234,0.456759,65680.0,65679.0,0.9349236]
[1718889540471,1.470277,65680.0,65679.0,0.9349236]
[1718889540644,2.079289,65680.0,65679.0,0.94518642]
[1718889540840,2.079289,65680.0,65679.0,0.94278136]
[1718889540841,2.10072927,65680.0,65679.0,0.94278136]
[1718889541072,4.75127027,65680.0,65679.0,0.94278136]
[1718889541314,4.75127027,65680.0,65679.0,1.24581854]
[1718889541723,3.69123227,65680.0,65679.0,1.33108736]
[1718889541974,3.66243827,65680.0,65679.0,1.38108736]
[1718889542111,1.73647527,65680.0,65679.0,1.40108736]
[1718889542302,1.454472,65680.0,65679.0,1.45108736]
[1718889542502,1.050283,65680.0,65679.0,1.13778736]
[1718889542741,1.050283,65680.0,65679.0,1.16078736]
[1718889543100,1.050283,65680.0,65679.0,1.2786165]
[1718889543305,1.050283,65680.0,65679.0,1.15917995]
[1718889543552,1.050283,65680.0,65679.0,1.08417395]
[1718889543808,1.050283,65680.0,65679.0,1.15917995]
[1718889544148,1.050283,65680.0,65679.0,1.15977995]
[1718889544149,1.048983,65680.0,65679.0,1.15977995]
[1718889544610,1.208168,65680.0,65679.0,1.04097395]
[1718889544766,1.208168,65680.0,65679.0,1.06597995]
[1718889544999,1.048983,65680.0,65679.0,1.11597995]
[1718889545206,1.048983,65680.0,65679.0,1.08597995]
[1718889545408,1.148983,65680.0,65679.0,1.13597995]
[1718889548560,1.048983,65680.0,65679.0,1.15594234]
[1718889548840,1.048983,65680.0,65679.0,1.13655494]
[1718889549051,1.048983,65680.0,65679.0,1.11294234]
[1718889549253,1.048983,65680.0,65679.0,1.13294234]
[1718889549872,1.048983,65680.0,65679.0,1.13655494]
[1718889550127,1.048983,65680.0,65679.0,1.13294234]
[1718889550783,1.048983,65680.0,65679.0,1.24938697]
[1718889550987,1.048983,65680.0,65679.0,1.27238697]
[1718889551188,1.048983,65680.0,65679.0,1.27599957]
[1718889551413,1.148983,65680.0,65679.0,1.15955494]
[1718889551818,1.17287607,65680.0,65679.0,1.15955494]
[1718889552652,0.92238631,65680.0,65679.0,1.15955494]
[1718889552853,0.92238631,65680.0,65679.0,1.15594234]
[1718889553071,0.92238631,65680.0,65679.0,1.13294234]
[1718889554123,0.92238631,65680.0,65679.0,1.17332473]
[1718889554334,0.92238631,65680.0,65679.0,1.19432473]
[1718889554539,0.92238631,65680.0,65679.0,1.15955494]
[1718889554975,0.92238631,65680.0,65679.0,1.16155494]
[1718889555174,0.92238631,65680.0,65679.0,1.36411606]
[1718889555323,0.92238631,65680.0,65679.0,1.19155494]
[1718889555523,0.92238631,65680.0,65679.0,1.15955494]
[1718889555802,0.92238631,65680.0,65679.0,1.15594234]
[1718889556348,0.92238631,65680.0,65679.0,1.13294234]
[1718889556528,1.21718293,65680.0,65679.0,1.13294234]
[1718889556729,1.03401193,65680.0,65679.0,1.13294234]
[1718889556928,0.92238631,65680.0,65679.0,1.13294234]
[1718889557358,1.03401193,65680.0,65679.0,1.13294234]
[1718889557490,1.05741746,65680.0,65679.0,1.13294234]
[1718889557691,0.94579184,65680.0,65679.0,1.13294234]
[1718889558099,0.94579184,65680.0,65679.0,1.15594234]
[1718889558326,0.94579184,65680.0,65679.0,1.19006254]
[1718889558530,0.94579184,65680.0,65679.0,1.34262366]
[1718889558901,0.84579184,65680.0,65679.0,1.39262366]
[1718889559103,0.82238631,65680.0,65679.0,1.72960538]
[1718889559363,0.82238631,65680.0,65679.0,1.77960538]
[1718889559497,0.32839907,65680.0,65679.0,1.78321798]
[1718889559876,0.15069459,65717.0,65714.0,0.195006]
[1718889560077,0.15069459,65724.0,65714.0,0.175006]
[1718889560237,0.061026,65720.0,65714.0,0.17358645]
[1718889560438,0.061026,65720.0,65714.0,0.18411016]
[1718889560646,0.061026,65720.0,65714.0,0.1965597]
[1718889560859,0.061026,65720.0,65714.0,0.21621567]
[1718889561058,0.061026,65720.0,65714.0,0.1965597]
[1718889561232,0.061026,65720.0,65714.0,0.1765597]
[1718889561434,0.02344457,65715.0,65714.0,0.11052371]
[1718889561643,0.00086,65715.0,65714.0,0.1765597]
[1718889561847,0.00086,65715.0,65714.0,0.06052371]
[1718889562184,0.00086,65715.0,65714.0,0.1265597]
[1718889563155,0.00086,65715.0,65714.0,0.19621567]
[1718889563354,0.00086,65715.0,65714.0,0.21681567]
[1718889563988,0.00086,65715.0,65714.0,0.1971597]
[1718889564206,0.00086,65715.0,65714.0,0.2201597]
[1718889564409,0.00086,65715.0,65714.0,0.2721597]
[1718889564957,0.40928172,65750.0,65742.0,0.06603599]
[1718889565240,0.333,65750.0,65738.0,0.11603599]
[1718889565441,0.333,65750.0,65743.0,0.0102637]
[1718889565646,0.333,65750.0,65741.0,0.06603599]
[1718889565848,0.333,65750.0,65744.0,0.01025474]
[1718889566049,0.061009,65745.0,65744.0,0.06603599]
[1718889566254,0.061009,65745.0,65738.0,0.0666036]
[1718889566255,0.061009,65745.0,65743.0,0.06603599]
[1718889566475,1.422922,65745.0,65743.0,0.06603599]
[1718889566686,1.075899,65745.0,65744.0,0.11603599]
[1718889566897,1.075899,65745.0,65744.0,0.16663599]
[1718889567103,0.473001,65745.0,65744.0,0.2072139]
[1718889567325,0.473001,65745.0,65744.0,0.22909565]
[1718889567952,0.473001,65745.0,65744.0,0.1642139]
[1718889568535,0.473001,65745.0,65744.0,0.05]
[1718889568737,0.473001,65745.0,65744.0,0.01228916]
[1718889569146,0.13594885,65746.0,65744.0,0.01228916]
[1718889569355,0.1,65745.0,65744.0,0.01228916]
[1718889569763,0.18051489,65745.0,65736.0,0.05986707]
[1718889569920,0.18051489,65745.0,65736.0,0.03686707]
[1718889570124,0.1,65745.0,65744.0,0.10290306]
[1718889570572,0.05966713,65746.0,65745.0,0.12290306]
[1718889570780,0.05966713,65746.0,65745.0,0.14650306]
[1718889570987,0.05966713,65746.0,65745.0,0.16115337]
[1718889571186,0.00864,65781.0,65771.0,0.03686707]
[1718889571407,0.07628172,65778.0,65771.0,0.03642024]
[1718889571829,0.07628172,65778.0,65772.0,0.00731164]
[1718889572031,0.07628172,65778.0,65771.0,0.03642024]
[1718889572681,0.07628172,65778.0,65771.0,0.03096863]
[1718889572886,0.07628172,65778.0,65772.0,0.00731164]
[1718889573288,0.07628172,65778.0,65775.0,0.03096863]
[1718889573712,0.07628172,65778.0,65776.0,0.00272992]
[1718889574024,0.07628172,65778.0,65775.0,0.03096863]
[1718889574467,0.07628172,65778.0,65766.0,0.03096863]
[1718889574690,0.07628172,65778.0,65748.0,0.45769034]
[1718889574691,0.07628172,65767.0,65763.0,0.03096863]
[1718889576414,0.15029989,65767.0,65759.0,0.03096863]
[1718889576626,0.15029989,65767.0,65751.0,0.0006]
[1718889576627,0.07628172,65760.0,65757.0,0.03096863]
[1718889577060,0.07628172,65760.0,65758.0,0.00995338]
[1718889577266,0.07628172,65760.0,65749.0,0.03096863]
[1718889577267,0.5724,65759.0,65749.0,0.03096863]
[1718889577479,0.07628172,65752.0,65742.0,0.03158299]
[1718889577679,0.07628172,65752.0,65742.0,0.02987299]
[1718889577886,0.07628172,65752.0,65743.0,0.01008778]
[1718889577887,0.00762817,65751.0,65743.0,0.01008778]
[1718889578084,0.12179986,65757.0,65751.0,0.02715763]
[1718889578286,0.1,65756.0,65751.0,0.02715763]
[1718889578620,0.1,65756.0,65751.0,0.00315763]
[1718889579114,0.01584223,65755.0,65751.0,0.00315763]
[1718889580340,0.03971575,65755.0,65751.0,0.00315763]
[1718889580549,0.03971575,65755.0,65754.0,0.00315763]
[1718889580689,0.03971575,65755.0,65754.0,0.03303062]
[1718889581093,0.03971575,65755.0,65754.0,0.04043011]
[1718889581340,0.03971575,65755.0,65754.0,0.06043011]
[1718889581747,0.03971575,65755.0,65754.0,0.04043011]
[1718889582230,0.03971575,65755.0,65754.0,0.06043011]
[1718889582810,0.03971575,65755.0,65754.0,0.04043011]
[1718889583029,0.03971575,65755.0,65754.0,0.0870713]
[1718889583414,0.03971575,65755.0,65754.0,0.09583843]
[1718889583613,0.03971575,65755.0,65754.0,0.08403011]
[1718889583814,0.03971575,65755.0,65754.0,0.04103011]
[1718889584362,0.03971575,65755.0,65752.0,0.01743011]
[1718889584582,0.03971575,65755.0,65749.0,0.01743011]
[1718889584785,0.07628172,65754.0,65743.0,0.01743011]
[1718889584950,0.07628172,65754.0,65739.0,0.0006]
[1718889584951,0.17628172,65754.0,65745.0,0.01743011]
[1718889585152,0.17628172,65754.0,65744.0,0.01743011]
[1718889585376,0.17628172,65754.0,65747.0,0.01743011]
[1718889585585,0.21788147,65754.0,65741.0,0.01743011]
[1718889585771,0.21788147,65754.0,65739.0,0.01743011]
[1718889585772,0.5705,65753.0,65739.0,0.01743011]
[1718889585975,0.1,65752.0,65740.0,0.01743011]
[1718889586175,0.1,65752.0,65741.0,0.01743011]
[1718889586349,0.1,65752.0,65742.0,0.0030421]
[1718889586550,0.1,65752.0,65744.0,0.01743011]
[1718889586763,0.1,65752.0,65747.0,0.01743011]
[1718889586976,0.1,65752.0,65745.0,0.01743011]
[1718889587171,0.03971575,65755.0,65747.0,0.01743011]
[1718889587377,0.03971575,65755.0,65732.0,0.04576903]
[1718889587378,0.00252802,65741.0,65727.0,0.01]
[1718889587578,0.00252802,65740.0,65727.0,0.01]
[1718889587956,0.00344016,65751.0,65726.0,0.45829034]
[1718889587957,0.00252802,65747.0,65729.0,0.01]
[1718889588170,0.00344016,65749.0,65733.0,0.01]
[1718889588171,0.00252802,65749.0,65733.0,0.01]
[1718889588331,0.1,65753.0,65736.0,0.01]
[1718889588332,0.00252802,65747.0,65736.0,0.01]
[1718889588682,0.00252802,65747.0,65738.0,0.01]
[1718889588833,0.00252802,65746.0,65739.0,0.00304195]
[1718889589512,0.00252802,65745.0,65731.0,0.01]
[1718889589830,0.00252802,65744.0,65730.0,0.01]
[1718889589977,0.00252802,65744.0,65726.0,0.0006]
[1718889589978,0.00252802,65744.0,65733.0,0.01]
[1718889590306,0.00252802,65749.0,65736.0,0.01]
[1718889590538,0.00252802,65747.0,65736.0,0.01]
[1718889591071,0.00252802,65748.0,65739.0,0.01]
[1718889591325,0.00252802,65748.0,65740.0,0.00304194]
[1718889591493,0.07380974,65752.0,65740.0,0.00304194]
[1718889592513,0.10330927,65752.0,65740.0,0.00304194]
[1718889592714,0.10330927,65752.0,65732.0,0.02304194]
[1718889592715,0.1,65751.0,65732.0,0.02304194]
[1718889592935,0.07628172,65745.0,65727.0,0.01]
[1718889593259,0.00344016,65750.0,65731.0,0.01]
[1718889593480,0.07628172,65744.0,65729.0,0.01]
[1718889593679,0.07628172,65744.0,65722.0,0.01]
[1718889593680,0.3027,65742.0,65722.0,0.01]
[1718889593879,0.02122811,65741.0,65722.0,0.01]
[1718889594078,0.02122811,65741.0,65709.0,0.0006]
[1718889594079,0.02,65732.0,65709.0,0.0006]
[1718889594285,0.02,65728.0,65709.0,0.0006]
[1718889594418,0.02,65728.0,65709.0,1e-08]
[1718889594620,0.02,65731.0,65708.0,0.44929034]
[1718889594823,0.02,65731.0,65709.0,0.05012903]
[1718889595024,0.02,65731.0,65706.0,0.002]
[1718889595616,0.02,65728.0,65702.0,0.2107]
[1718889595791,0.02,65730.0,65704.0,0.052]
[1718889595960,0.02,65730.0,65705.0,0.08729515]
[1718889596163,0.02,65728.0,65705.0,0.11029515]
[1718889596494,0.02,65731.0,65706.0,0.09832466]
[1718889596649,0.02,65731.0,65707.0,0.023]
[1718889596848,0.02,65734.0,65707.0,0.023]
[1718889597052,0.02,65734.0,65708.0,0.002]
[1718889597239,0.00344016,65736.0,65709.0,0.03563122]
[1718889597240,0.02,65735.0,65709.0,0.03563122]
[1718889597437,0.02,65735.0,65710.0,0.023]
[1718889597850,0.02,65734.0,65710.0,0.023]
[1718889598237,0.02,65731.0,65710.0,0.023]
[1718889598631,0.02,65731.0,65707.0,0.023]
[1718889598849,0.02,65731.0,65708.0,0.07052967]
[1718889599042,0.02,65731.0,65709.0,0.023]
[1718889599247,0.02,65727.0,65709.0,0.023]
[1718889599475,0.02,65727.0,65710.0,0.000946]
[1718889599672,0.02,65725.0,65710.0,0.000946]
[1718889599828,0.263,65724.0,65710.0,0.000946]
[1718889600035,0.1,65723.0,65710.0,0.000946]
[1718889600462,0.02,65721.0,65710.0,0.000946]
[1718889600637,0.16935,65723.0,65710.0,0.000946]
[1718889600821,0.16935,65723.0,65703.0,0.002]
[1718889600822,0.1,65723.0,65703.0,0.002]
[1718889601191,0.1,65723.0,65705.0,0.45769034]
[1718889601353,0.1,65723.0,65703.0,0.17628172]
[1718889601354,0.1,65725.0,65706.0,0.00304295]
[1718889601975,0.1,65725.0,65707.0,0.023]
[1718889602176,0.1,65725.0,65708.0,0.02347537]
[1718889602372,0.1,65725.0,65709.0,0.023]
[1718889602573,0.1,65725.0,65710.0,0.0030429]
[1718889603175,0.1,65725.0,65711.0,0.023]
[1718889603379,0.1,65725.0,65712.0,0.00304284]
[1718889603585,0.1,65725.0,65713.0,0.023]
[1718889603787,0.1,65729.0,65714.0,0.00304279]
[1718889603972,0.18865,65729.0,65714.0,0.00304279]
[1718889604167,0.02,65728.0,65713.0,0.023]
[1718889604383,0.00292534,65720.0,65703.0,0.45769034]
[1718889604582,0.00292534,65720.0,65704.0,0.06658255]
[1718889604583,0.02292534,65720.0,65704.0,0.06658255]
[1718889604839,0.00292534,65720.0,65704.0,0.06658255]
[1718889605206,0.00292534,65720.0,65704.0,0.023]
[1718889605404,0.00292534,65720.0,65701.0,0.023]
[1718889605856,0.00292534,65715.0,65692.0,0.04707466]
[1718889606075,0.00292534,65712.0,65691.0,0.04707466]
[1718889607073,0.00292534,65703.0,65682.0,0.04707466]
[1718889607284,0.00292534,65700.0,65681.0,0.45769034]
[1718889607434,0.00292534,65698.0,65681.0,0.45769034]
[1718889607629,0.00292534,65698.0,65679.0,0.92760593]
[1718889607832,0.1,65700.0,65680.0,0.005044]
[1718889608057,0.00292534,65698.0,65680.0,0.002]
[1718889608276,0.00292534,65697.0,65679.0,0.92760593]
[1718889608482,0.05391893,65699.0,65679.0,0.92760593]
[1718889608483,0.00292534,65693.0,65679.0,0.92760593]
[1718889608683,0.05391893,65699.0,65679.0,0.92760593]
[1718889608684,0.00292534,65690.0,65679.0,0.92760593]
[1718889609058,0.00292534,65690.0,65679.0,0.87860291]
[1718889610161,0.5647,65683.0,65680.0,0.00304459]
[1718889610362,0.00292534,65682.0,65680.0,0.00304459]
[1718889610563,0.1,65682.0,65680.0,0.00304459]
[1718889610893,0.1,65682.0,65679.0,0.87860291]
[1718889611818,0.00292534,65691.0,65679.0,0.87860291]
[1718889612018,0.00292534,65691.0,65680.0,0.02604425]
[1718889613771,0.00292534,65691.0,65680.0,0.023]
[1718889613972,0.00292534,65690.0,65679.0,0.87860291]
[1718889614327,0.00292534,65689.0,65679.0,0.87860291]
[1718889614873,0.00292534,65687.0,65679.0,0.87860291]
[1718889615095,0.02681965,65687.0,65679.0,0.87860291]
[1718889615468,0.00292534,65680.0,65679.0,0.68000332]
[1718889615684,0.05848787,65680.0,65679.0,0.62238038]
[1718889615881,0.00292534,65680.0,65679.0,0.49113483]
[1718889616084,0.00292534,65680.0,65679.0,0.45013483]
[1718889616284,0.00292534,65680.0,65679.0,0.41668783]
[1718889616487,0.00292534,65680.0,65679.0,0.40906701]
[1718889616670,0.07048787,65680.0,65679.0,0.18861701]
[1718889616871,0.07048787,65680.0,65671.0,0.33184757]
[1718889616872,0.00292534,65672.0,65671.0,0.23560163]
[1718889617293,0.01876757,65672.0,65671.0,0.23560163]
[1718889617492,0.01876757,65672.0,65671.0,0.23060163]
[1718889618298,0.01876757,65672.0,65671.0,0.15741316]
[1718889618502,0.01576757,65672.0,65671.0,0.15741316]
[1718889618792,0.01576757,65672.0,65671.0,0.12841316]
[1718889618944,0.01576757,65672.0,65671.0,0.01396016]
[1718889619145,0.58366757,65672.0,65671.0,0.01396016]
[1718889619319,0.78851784,65672.0,65671.0,0.01014384]
[1718889619527,0.02,65671.0,65658.0,0.96164784]
[1718889619728,0.14448351,65671.0,65664.0,0.45769034]
[1718889619932,0.14448351,65671.0,65659.0,0.07932737]
[1718889619933,0.1,65671.0,65665.0,0.00304528]
[1718889620311,0.1,65671.0,65658.0,0.96164784]
[1718889620600,0.11157676,65671.0,65658.0,0.96164784]
[1718889620915,0.02,65663.0,65658.0,0.54233784]
[1718889621084,0.5631,65662.0,65658.0,0.45253684]
[1718889621319,0.15831,65661.0,65658.0,0.44008684]
[1718889621495,0.02,65659.0,65658.0,0.16204791]
[1718889621668,0.02,65659.0,65658.0,0.13087653]
[1718889621878,0.02,65659.0,65658.0,0.12169653]
[1718889621879,0.04947629,65659.0,65658.0,0.12169653]
[1718889622059,0.0939598,65659.0,65658.0,0.12169653]
[1718889622284,0.30557629,65659.0,65658.0,0.04269653]
[1718889622484,0.40557629,65659.0,65658.0,0.04269653]
[1718889622683,0.7505598,65659.0,65658.0,0.03887907]
[1718889622916,0.32048351,65658.0,65657.0,0.009504]
[1718889623149,0.49037027,65658.0,65657.0,0.009504]
[1718889623943,0.49037027,65658.0,65650.0,0.0005009]
[1718889623944,0.79587027,65658.0,65650.0,0.0005009]
[1718889624168,0.5663,65651.0,65650.0,0.0005009]
[1718889624372,0.5663,65651.0,65638.0,0.1481039]
[1718889624373,0.02,65645.0,65638.0,0.1481039]
[1718889624619,0.6463,65651.0,65638.0,0.1387839]
[1718889624620,0.02,65643.0,65638.0,0.1387839]
[1718889624818,0.2608,65643.0,65638.0,0.1287839]
[1718889624942,0.16448351,65642.0,65638.0,0.1287839]
[1718889625145,0.04464418,65641.0,65637.0,1.3241979]
[1718889625352,0.35,65638.0,65637.0,1.18054728]
[1718889625553,0.45,65638.0,65637.0,1.05676373]
[1718889625793,0.47448351,65638.0,65637.0,1.05676373]
[1718889625995,0.56437027,65638.0,65637.0,1.04646284]
[1718889626202,0.56437027,65638.0,65637.0,0.93346284]
[1718889626375,0.56437027,65638.0,65637.0,0.84028661]
[1718889626577,0.58552853,65638.0,65637.0,0.81958004]
[1718889626824,0.51564177,65638.0,65637.0,0.67758004]
[1718889627239,0.47448351,65638.0,65637.0,0.67758004]
[1718889627813,0.43,65638.0,65637.0,0.67758004]
[1718889628426,0.45917535,65638.0,65637.0,0.67463331]
[1718889628626,0.48622265,65638.0,65637.0,0.67463331]
[1718889628792,0.50622265,65638.0,65637.0,0.67463331]
[1718889629111,0.54936807,65638.0,65637.0,0.55518157]
[1718889629310,0.93554314,65638.0,65637.0,0.17098128]
[1718889629511,0.93554314,65638.0,65615.0,1.0]
[1718889629512,0.02,65626.0,65615.0,0.85877741]
[1718889629711,0.02,65623.0,65615.0,0.85877741]
[1718889629913,0.02,65623.0,65615.0,0.76177741]
[1718889630116,0.0432888,65622.0,65615.0,0.76177741]
[1718889630491,0.00344016,65621.0,65615.0,0.76177741]
[1718889630823,0.08443827,65620.0,65615.0,0.76177741]
[1718889631026,0.0432888,65620.0,65615.0,0.76177741]
[1718889631404,0.0432888,65620.0,65616.0,0.00304781]
[1718889631608,0.04114947,65619.0,65616.0,0.00304781]
[1718889631916,0.1,65626.0,65616.0,0.00304781]
[1718889631917,0.1,65626.0,65617.0,0.0153943]
[1718889632142,0.1,65633.0,65619.0,0.102]
[1718889632345,0.0432888,65638.0,65619.0,0.102]
[1718889632346,0.0432888,65638.0,65620.0,0.02604705]
[1718889632548,0.04116011,65638.0,65623.0,0.07628172]
[1718889632746,0.2449,65646.0,65626.0,0.1719]
[1718889632950,0.02449,65645.0,65626.0,0.1719]
[1718889633149,0.02449,65645.0,65627.0,0.03833287]
[1718889633404,0.02958648,65646.0,65629.0,0.002]
[1718889633633,0.3229,65651.0,65630.0,0.00304642]
[1718889633843,0.3229,65651.0,65630.0,0.01836087]
[1718889633844,0.35023153,65651.0,65630.0,0.01836087]
[1718889633990,0.05951315,65650.0,65630.0,0.01836087]
[1718889634392,0.02733153,65651.0,65632.0,0.05]
[1718889634575,0.30327305,65663.0,65637.0,0.102]
[1718889634775,0.02,65660.0,65637.0,0.002]
[1718889634981,0.135825,65650.0,65638.0,0.01526533]
[1718889635609,0.135825,65650.0,65628.0,0.002]
[1718889635812,0.07628172,65648.0,65620.0,0.002]
[1718889636013,0.02,65646.0,65629.0,0.01532059]
[1718889636215,0.02,65646.0,65619.0,0.000946]
[1718889636216,0.02,65644.0,65619.0,0.000946]
[1718889636423,0.09628172,65641.0,65619.0,0.000946]
[1718889636639,0.09628172,65641.0,65620.0,0.01537587]
[1718889636640,0.00997219,65640.0,65620.0,0.01537587]
[1718889636851,0.02,65638.0,65620.0,0.01537587]
[1718889637058,0.02,65636.0,65620.0,0.01537587]
[1718889637263,0.5637,65635.0,65620.0,0.01537587]
[1718889637515,0.15934257,65634.0,65620.0,0.01537587]
[1718889637723,0.0432888,65633.0,65620.0,0.01537587]
[1718889638483,0.0456052,65632.0,65620.0,0.01537587]
[1718889638713,0.04317845,65631.0,65620.0,0.01537587]
[1718889639037,0.0456052,65630.0,65620.0,0.01537587]
[1718889639209,0.02481262,65629.0,65620.0,0.01537587]
[1718889639415,0.06799107,65629.0,65621.0,0.00304721]
[1718889639685,0.1,65629.0,65621.0,0.00304721]
[1718889639887,0.1,65629.0,65622.0,0.01536358]
[1718889640109,0.1,65629.0,65623.0,0.00304716]
[1718889640315,0.1,65629.0,65624.0,0.0153513]
[1718889640512,0.1,65629.0,65625.0,0.00304704]
[1718889640513,0.352691,65629.0,65625.0,0.00304704]
[1718889640715,0.1,65629.0,65625.0,0.00304704]
[1718889640912,0.061102,65635.0,65625.0,0.00304704]
[1718889641152,0.1,65638.0,65625.0,0.00304704]
[1718889641363,0.00344016,65637.0,65619.0,0.000946]
[1718889641564,0.02,65635.0,65619.0,0.000946]
[1718889641767,0.15332481,65637.0,65619.0,0.000946]
[1718889641768,0.07628172,65631.0,65619.0,0.000946]
[1718889641970,0.02,65628.0,65620.0,0.01537587]
[1718889642199,0.00344016,65627.0,65620.0,0.01537587]
[1718889642406,0.00344016,65627.0,65620.0,0.01536973]
[1718889642407,0.04425328,65627.0,65620.0,0.01536973]
[1718889642632,0.04425328,65627.0,65621.0,0.00304774]
[1718889642633,0.14425328,65627.0,65621.0,0.00304774]
[1718889642829,0.14425328,65627.0,65621.0,0.01787395]
[1718889643108,0.07161533,65626.0,65622.0,0.01482007]
[1718889643309,0.07161533,65626.0,65619.0,0.000946]
[1718889643310,0.04425328,65625.0,65619.0,0.000946]
[1718889643530,0.18985848,65625.0,65619.0,0.000946]
[1718889643733,0.02774772,65624.0,65620.0,0.01483235]
[1718889644143,0.08985848,65623.0,65620.0,0.01483235]
[1718889644318,0.2724,65622.0,65615.0,0.69711054]
[1718889644522,0.2724,65622.0,65616.0,0.01238487]
[1718889644523,0.1,65621.0,65616.0,0.01238487]
[1718889644888,0.1,65621.0,65615.0,0.23700141]
[1718889644889,0.25,65616.0,65615.0,0.23700141]
[1718889645095,0.25,65616.0,65615.0,0.21015415]
[1718889645224,0.06,65604.0,65603.0,0.15948942]
[1718889645425,0.06,65604.0,65554.0,0.05]
[1718889645426,0.02,65595.0,65594.0,0.99092071]
[1718889645654,0.02,65595.0,65594.0,0.97508071]
[1718889645655,0.06425328,65595.0,65594.0,0.97508071]
[1718889645851,0.10985848,65595.0,65594.0,0.97508071]
[1718889646054,0.20985848,65595.0,65594.0,0.97508071]
[1718889646226,0.20985848,65595.0,65594.0,0.92517166]
[1718889646227,0.18985848,65595.0,65594.0,0.92517166]
[1718889646434,0.18985848,65595.0,65555.0,0.009493]
[1718889646435,0.2621,65578.0,65555.0,0.009493]
[1718889646654,0.2621,65578.0,65574.0,0.45769034]
[1718889646816,0.08913955,65577.0,65555.0,0.009493]
[1718889647012,0.18913955,65577.0,65555.0,0.009493]
[1718889647416,0.02,65575.0,65555.0,0.46718334]
[1718889647705,0.08551596,65574.0,65573.0,0.922346]
[1718889647914,0.08551596,65574.0,65573.0,0.87409149]
[1718889647915,0.10551596,65574.0,65573.0,0.87409149]
[1718889648041,0.20551596,65574.0,65573.0,0.87409149]
[1718889648244,0.6994,65574.0,65573.0,0.87409149]
[1718889648444,0.78520049,65574.0,65573.0,0.82576135]
[1718889648723,0.7437154,65574.0,65573.0,0.737441]
[1718889648949,0.7437154,65574.0,65573.0,0.66509837]
[1718889649884,0.7437154,65574.0,65573.0,0.67568345]
[1718889650103,0.7437154,65574.0,65573.0,0.67428345]
[1718889650308,0.7937154,65574.0,65573.0,0.67428345]
[1718889650688,0.8037154,65574.0,65573.0,0.67428345]
[1718889650892,0.9267154,65574.0,65573.0,0.67428345]
[1718889651274,0.91581718,65574.0,65573.0,0.36866202]
[1718889651474,0.91581718,65574.0,65555.0,0.009493]
[1718889651475,0.7448,65569.0,65555.0,0.009493]
[1718889651683,0.94408172,65569.0,65555.0,0.009493]
[1718889651898,1.0629405,65569.0,65568.0,0.34392685]